bitfinex/quotes_BTCUSD_20241010
["timestamp","ask_amount","ask_price","bid_price","bid_amount"]
[1728543490035,1.06979898,61157.0,61156.0,0.008818]
[1728543490036,0.971775,61157.0,61156.0,0.008818]
[1728543490265,0.808262,61157.0,61156.0,0.008818]
[1728543490615,0.808262,61157.0,61156.0,0.01373477]
[1728543490849,0.93074236,61157.0,61156.0,0.01073477]
[1728543491083,0.76993575,61157.0,61156.0,0.00273477]
[1728543491323,0.76993575,61157.0,61156.0,0.007818]
[1728543491573,0.52201314,61157.0,61156.0,0.003818]
[1728543491828,0.22929204,61157.0,61156.0,0.164334]
[1728543492058,0.18032559,61157.0,61156.0,0.165334]
[1728543492568,0.18032559,61157.0,61156.0,0.17027648]
[1728543493054,0.18032559,61157.0,61156.0,0.17319325]
[1728543495457,0.18032559,61157.0,61156.0,0.19701335]
[1728543496456,0.18032559,61157.0,61156.0,0.21224073]
[1728543500367,0.18032559,61157.0,61156.0,0.21224476]
[1728543503759,0.18032559,61157.0,61156.0,0.21225077]
[1728543504490,0.18032559,61157.0,61156.0,0.21225175]
[1728543505934,0.18032559,61157.0,61156.0,0.04379327]
[1728543505935,0.30576784,61157.0,61156.0,0.04379327]
[1728543506158,0.30576784,61157.0,61156.0,0.19701335]
[1728543506379,0.18032559,61157.0,61156.0,0.19207087]
[1728543506603,0.30576784,61157.0,61156.0,0.19207087]
[1728543510444,0.18032559,61157.0,61156.0,0.19207087]
[1728543510906,0.18032559,61157.0,61156.0,0.20732296]
[1728543517778,0.18032559,61157.0,61156.0,0.19207087]
[1728543518017,0.18032559,61157.0,61156.0,0.20732005]
[1728543518953,0.30576784,61157.0,61156.0,0.20732005]
[1728543520124,0.18032559,61157.0,61156.0,0.20732005]
[1728543524858,0.18032559,61157.0,61156.0,0.19207087]
[1728543525113,0.18032559,61157.0,61156.0,0.20733514]
[1728543531718,0.18032559,61157.0,61156.0,0.20733838]
[1728543535515,0.2293179,61157.0,61156.0,0.20733838]
[1728543536406,0.18032559,61157.0,61156.0,0.23177195]
[1728543541167,0.18032559,61157.0,61156.0,0.23177969]
[1728543541389,0.18032559,61157.0,61156.0,0.21650707]
[1728543541622,0.18032559,61157.0,61156.0,0.23177994]
[1728543544582,0.22939629,61157.0,61156.0,0.23177994]
[1728543544804,0.18032559,61157.0,61156.0,0.23177994]
[1728543545465,0.22939629,61157.0,61156.0,0.23177994]
[1728543545897,0.18032559,61157.0,61156.0,0.20734359]
[1728543546328,0.18032559,61157.0,61156.0,0.23177387]
[1728543546547,0.22940333,61157.0,61156.0,0.23177387]
[1728543546774,0.22940333,61157.0,61156.0,0.20734359]
[1728543547206,0.09040333,61157.0,61156.0,0.23177458]
[1728543547425,0.04132559,61157.0,61156.0,0.23177458]
[1728543547866,0.04132559,61157.0,61156.0,0.19207087]
[1728543548120,0.04132559,61157.0,61156.0,0.23076825]
[1728543548574,0.04132559,61157.0,61156.0,0.23676825]
[1728543548798,0.04132559,61157.0,61156.0,0.23576825]
[1728543549677,0.04132559,61157.0,61156.0,0.24076825]
[1728543551363,0.04132559,61157.0,61156.0,0.20107087]
[1728543551593,0.04132559,61157.0,61156.0,0.2407624]
[1728543552948,0.09041243,61157.0,61156.0,0.2407624]
[1728543553232,0.04132559,61157.0,61156.0,0.21633684]
[1728543553457,0.0904124,61157.0,61156.0,0.24075141]
[1728543555021,0.0904124,61157.0,61156.0,0.20107087]
[1728543555257,0.0904124,61157.0,61156.0,0.24073578]
[1728543556429,0.2253124,61157.0,61156.0,0.24073578]
[1728543556654,0.24985585,61157.0,61156.0,0.2163266]
[1728543558494,0.24985585,61157.0,61156.0,0.21632754]
[1728543561877,0.24985585,61157.0,61156.0,0.20107087]
[1728543562130,0.24985585,61157.0,61156.0,0.21632798]
[1728543562866,0.17622559,61157.0,61156.0,0.24073702]
[1728543564345,0.17622559,61157.0,61156.0,0.21632494]
[1728543564584,0.17622559,61157.0,61156.0,0.24073146]
[1728543565021,0.17622559,61157.0,61156.0,0.20107087]
[1728543565778,0.001636,61157.0,61156.0,0.46685099]
[1728543566026,0.001636,61157.0,61156.0,0.50651261]
[1728543566503,0.001636,61157.0,61156.0,0.50151261]
[1728543566750,0.001636,61157.0,61156.0,0.51451261]
[1728543566993,0.001636,61157.0,61156.0,0.50850414]
[1728543567284,0.001636,61157.0,61156.0,0.52150414]
[1728543567528,0.001636,61157.0,61156.0,0.521505]
[1728543567770,0.001636,61157.0,61156.0,0.52150539]
[1728543568754,0.001636,61157.0,61156.0,0.36066775]
[1728543570730,0.001636,61157.0,61156.0,0.52150539]
[1728543570991,0.001636,61157.0,61156.0,0.52148526]
[1728543571671,0.001636,61157.0,61156.0,0.36064762]
[1728543574096,0.001636,61157.0,61156.0,0.36064814]
[1728543575760,0.001636,61157.0,61156.0,0.32101335]
[1728543575989,0.001636,61157.0,61156.0,0.34540434]
[1728543576231,0.001636,61157.0,61156.0,0.36064871]
[1728543576689,0.001636,61157.0,61156.0,0.52148635]
[1728543577691,0.001636,61157.0,61156.0,0.48185099]
[1728543577940,0.001636,61157.0,61156.0,0.49709053]
[1728543578167,0.001636,61157.0,61156.0,0.5214738]
[1728543578646,0.001636,61157.0,61156.0,0.5234738]
[1728543578903,0.001636,61157.0,61156.0,0.5214738]
[1728543579387,0.001636,61157.0,61156.0,0.5234738]
[1728543579630,0.001636,61157.0,61156.0,0.5214738]
[1728543581995,0.000136,61159.0,61158.0,0.27036925]
[1728543582218,0.000136,61159.0,61158.0,0.44644643]
[1728543583117,0.000136,61159.0,61158.0,0.47082443]
[1728543583358,0.000136,61159.0,61158.0,0.49282443]
[1728543583359,0.000954,61159.0,61158.0,0.49282443]
[1728543584519,0.000954,61159.0,61158.0,0.49282232]
[1728543586581,0.000954,61159.0,61158.0,0.49936432]
[1728543587499,0.000954,61159.0,61158.0,0.45974889]
[1728543587726,0.000954,61159.0,61158.0,0.49937303]
[1728543589111,0.000954,61159.0,61158.0,0.47698894]
[1728543590033,0.000954,61159.0,61158.0,0.47498894]
[1728543591901,0.000954,61159.0,61158.0,0.47698894]
[1728543592130,0.000954,61159.0,61158.0,0.50138641]
[1728543593056,0.000954,61159.0,61158.0,0.47698894]
[1728543594428,0.000954,61159.0,61158.0,0.4770044]
[1728543594654,0.000954,61159.0,61158.0,0.45974889]
[1728543594904,0.000954,61159.0,61158.0,0.47500485]
[1728543596252,0.000954,61159.0,61158.0,0.31416721]
[1728543596514,0.079254,61159.0,61158.0,0.31416721]
[1728543598133,0.220054,61159.0,61158.0,0.30762521]
[1728543600727,0.220054,61159.0,61158.0,0.30268273]
[1728543601428,0.220054,61159.0,61158.0,0.55596341]
[1728543601669,0.220054,61159.0,61158.0,0.30762521]
[1728543606366,0.220054,61159.0,61158.0,0.30844321]
[1728543608042,0.220054,61159.0,61158.0,0.30350073]
[1728543608542,0.220054,61159.0,61158.0,0.30844321]
[1728543608543,0.26908562,61159.0,61158.0,0.30844321]
[1728543609031,0.26908562,61159.0,61158.0,0.30350073]
[1728543609281,0.26908562,61159.0,61158.0,0.03999073]
[1728543609512,0.220054,61159.0,61158.0,0.02473477]
[1728543609741,0.49923565,61159.0,61158.0,0.02473477]
[1728543610218,0.26911915,61159.0,61158.0,0.28824477]
[1728543610450,0.220054,61159.0,61158.0,0.29318725]
[1728543611228,0.220054,61159.0,61158.0,0.30844786]
[1728543613160,0.220054,61159.0,61158.0,0.29318725]
[1728543613393,0.220054,61159.0,61158.0,0.30844646]
[1728543615773,0.26911563,61159.0,61158.0,0.30844646]
[1728543618638,0.21532107,61159.0,61158.0,0.30844646]
[1728543618880,0.21532107,61159.0,61158.0,0.30350398]
[1728543619392,0.21532107,61159.0,61158.0,0.30350455]
[1728543619886,0.2643827,61159.0,61158.0,0.30350455]
[1728543620361,0.21532107,61159.0,61158.0,0.30350455]
[1728543621079,0.2643827,61159.0,61158.0,0.30350455]
[1728543621308,0.2643827,61159.0,61158.0,0.28824477]
[1728543622035,0.2643827,61159.0,61158.0,0.1399958]
[1728543622287,0.38981564,61159.0,61158.0,0.13999708]
[1728543624456,0.34076332,61159.0,61158.0,0.02473477]
[1728543624701,0.34076332,61159.0,61158.0,0.28824477]
[1728543626581,0.41435577,61159.0,61158.0,0.02473477]
[1728543627540,0.41433064,61159.0,61158.0,0.18824477]
[1728543628499,0.41433064,61159.0,61158.0,0.02473477]
[1728543628767,0.41433064,61159.0,61158.0,0.18824477]
[1728543629474,0.61989034,61159.0,61158.0,0.022818]
[1728543629694,0.52180314,61159.0,61158.0,0.022818]
[1728543629925,0.78241317,61159.0,61158.0,0.022818]
[1728543630208,0.94592117,61159.0,61158.0,0.022818]
[1728543630446,0.906649,61159.0,61158.0,0.022818]
[1728543630685,0.906649,61159.0,61158.0,0.02473477]
[1728543631164,0.906649,61159.0,61158.0,0.011818]
[1728543631390,0.906649,61159.0,61158.0,0.01973477]
[1728543631391,0.97038461,61159.0,61158.0,0.01973477]
[1728543632024,0.80687661,61159.0,61158.0,0.017818]
[1728543632241,0.80687661,61159.0,61158.0,0.01973477]
[1728543632454,0.80687661,61159.0,61158.0,0.00873477]
[1728543632656,0.68427678,61159.0,61158.0,0.006818]
[1728543632855,0.84778478,61159.0,61158.0,0.011818]
[1728543633062,0.84778478,61159.0,61158.0,0.006818]
[1728543633295,0.84778478,61159.0,61158.0,0.000818]
[1728543633501,1.00859139,61159.0,61158.0,0.003818]
[1728543633944,1.00859139,61159.0,61158.0,0.007818]
[1728543634599,0.84778478,61159.0,61158.0,0.00973477]
[1728543634807,0.84778478,61159.0,61158.0,0.00573477]
[1728543635024,0.84778478,61159.0,61158.0,0.00873477]
[1728543637682,0.66674496,61159.0,61158.0,0.00873477]
[1728543637823,0.94571824,61159.0,61158.0,0.00873477]
[1728543638028,0.84768466,61159.0,61158.0,0.00873477]
[1728543638792,0.68417666,61159.0,61158.0,0.00873477]
[1728543639013,0.7822095,61159.0,61158.0,0.00873477]
[1728543639250,0.65676725,61159.0,61158.0,0.00873477]
[1728543639491,0.7822095,61159.0,61158.0,0.00873477]
[1728543640668,0.80671773,61159.0,61158.0,0.00873477]
[1728543641800,0.80185934,61159.0,61158.0,0.00873477]
[1728543642805,0.49108032,61159.0,61158.0,0.00873477]
[1728543646839,0.49108032,61159.0,61158.0,0.17224477]
[1728543647526,0.49108032,61159.0,61158.0,0.00873477]
[1728543648696,0.61652257,61159.0,61158.0,0.006818]
[1728543649449,0.61652257,61159.0,61158.0,0.00873477]
[1728543652581,0.51848057,61159.0,61158.0,0.00873477]
[1728543653047,0.51853738,61159.0,61158.0,0.00873477]
[1728543655964,0.51353738,61159.0,61158.0,0.00873477]
[1728543659513,0.63611699,61159.0,61158.0,0.00873477]
[1728543662300,0.51353738,61159.0,61158.0,0.00873477]
[1728543663442,0.51353738,61159.0,61158.0,0.006818]
[1728543663712,0.67704538,61159.0,61158.0,0.006818]
[1728543664187,0.67704538,61159.0,61158.0,0.00873477]
[1728543664411,0.67704538,61159.0,61158.0,0.006818]
[1728543664634,0.51353738,61159.0,61158.0,0.006818]
[1728543665786,0.51353738,61159.0,61158.0,0.00873477]
[1728543666047,0.67704538,61159.0,61158.0,0.006818]
[1728543666284,1.02965958,61159.0,61158.0,0.006818]
[1728543666554,0.9785105,61159.0,61158.0,0.006818]
[1728543666769,1.12560603,61159.0,61158.0,0.00873477]
[1728543667237,0.9785105,61159.0,61158.0,0.00873477]
[1728543667692,0.9785105,61159.0,61158.0,0.006818]
[1728543667693,1.03612535,61159.0,61158.0,0.006818]
[1728543667933,0.88902982,61159.0,61158.0,0.006818]
[1728543670684,0.88921921,61159.0,61158.0,0.006818]
[1728543673257,0.88921921,61159.0,61158.0,0.00873477]
[1728543673467,0.88921921,61159.0,61158.0,0.006818]
[1728543673660,1.05002582,61159.0,61158.0,0.006818]
[1728543674161,1.05002582,61159.0,61158.0,0.00873477]
[1728543674407,1.05002582,61159.0,61158.0,0.006818]
[1728543674923,0.88921921,61159.0,61158.0,0.006818]
[1728543680036,0.163524,61153.0,61152.0,0.000818]
[1728543680265,0.89363653,61153.0,61152.0,0.000818]
[1728543680488,1.05929842,61153.0,61152.0,0.000818]
[1728543680717,1.05444314,61153.0,61152.0,0.000818]
[1728543681307,1.05444314,61153.0,61152.0,0.009818]
[1728543681652,1.05444314,61153.0,61152.0,0.000818]
[1728543682344,1.21995793,61153.0,61152.0,0.000818]
[1728543682584,1.05915132,61153.0,61152.0,0.000818]
[1728543682799,1.05915132,61153.0,61152.0,0.009818]
[1728543683026,1.05915132,61153.0,61152.0,0.000818]
[1728543683497,0.89363653,61153.0,61152.0,0.000818]
[1728543683957,0.73011253,61153.0,61152.0,0.000818]
[1728543684178,0.87774398,61153.0,61152.0,0.00273477]
[1728543684396,0.67896573,61153.0,61152.0,0.00273477]
[1728543684633,0.84248973,61153.0,61152.0,0.000818]
[1728543684849,0.84224481,61153.0,61152.0,0.000818]
[1728543686456,0.98925892,61153.0,61152.0,0.000818]
[1728543687156,1.15006553,61153.0,61152.0,0.000818]
[1728543687400,1.05408973,61153.0,61152.0,0.000818]
[1728543687851,1.00305142,61153.0,61152.0,0.000818]
[1728543688312,1.1500388,61153.0,61152.0,0.000818]
[1728543688540,1.05408011,61153.0,61152.0,0.000818]
[1728543688762,1.00305142,61153.0,61152.0,0.000818]
[1728543689040,1.05407998,61153.0,61152.0,0.000818]
[1728543689728,1.05407652,61153.0,61152.0,0.000818]
[1728543691125,0.71680256,61153.0,61152.0,0.000818]
[1728543691350,0.84224481,61153.0,61152.0,0.000818]
[1728543692517,0.71680256,61153.0,61152.0,0.000818]
[1728543692974,0.86375126,61153.0,61152.0,0.000818]
[1728543694372,0.65225126,61153.0,61152.0,0.000818]
[1728543694623,0.81305787,61153.0,61152.0,0.000818]
[1728543695078,0.61416951,61153.0,61148.0,0.000817]
[1728543695306,0.28897625,61149.0,61148.0,0.000817]
[1728543695526,0.85335481,61149.0,61148.0,0.000817]
[1728543699069,0.85318348,61149.0,61148.0,0.000817]
[1728543699551,1.01399009,61149.0,61148.0,0.000817]
[1728543700019,0.85318348,61149.0,61148.0,0.000817]
[1728543702580,0.72774123,61149.0,61148.0,0.000817]
[1728543702799,0.85318348,61149.0,61148.0,0.000817]
[1728543703688,0.85319944,61149.0,61148.0,0.000817]
[1728543708454,0.85324386,61149.0,61148.0,0.000817]
[1728543709339,1.05074876,61149.0,61148.0,0.000817]
[1728543709574,0.90432219,61149.0,61148.0,0.000817]
[1728543709801,0.90432219,61149.0,61148.0,0.00273377]
[1728543710244,0.90432219,61149.0,61148.0,0.000817]
[1728543715415,1.05128242,61149.0,61148.0,0.000817]
[1728543717017,0.163542,61146.0,61145.0,0.0021]
[1728543717280,0.90663019,61146.0,61145.0,0.0021]
[1728543717490,0.90663019,61146.0,61137.0,0.000818]
[1728543717491,0.74308819,61146.0,61137.0,0.000818]
[1728543717714,0.66099543,61138.0,61137.0,0.000818]
[1728543717951,0.85557386,61138.0,61137.0,0.000818]
[1728543718179,0.89017923,61138.0,61134.0,0.00191677]
[1728543718433,0.28901425,61135.0,61134.0,0.00191677]
[1728543718643,0.63068186,61135.0,61134.0,0.00191677]
[1728543718865,0.63082492,61135.0,61134.0,0.00191677]
[1728543720046,0.71411157,61135.0,61134.0,0.00191677]
[1728543720491,0.63082492,61135.0,61134.0,0.00191677]
[1728543721380,0.84725791,61135.0,61134.0,0.00191677]
[1728543722721,0.84725791,61135.0,61134.0,0.00273477]
[1728543724085,0.84725791,61135.0,61134.0,0.000418]
[1728543724305,0.84725791,61135.0,61134.0,0.000218]
[1728543724982,0.163577,61134.0,61132.0,0.00093477]
[1728543725201,0.34184366,61133.0,61132.0,0.00083477]
[1728543725433,0.34184366,61133.0,61132.0,0.00073477]
[1728543725644,0.34184366,61133.0,61132.0,0.00063477]
[1728543725872,0.34184366,61133.0,61132.0,3.477e-05]
[1728543726129,0.50542166,61133.0,61128.0,0.16352477]
[1728543726387,0.12544225,61129.0,61128.0,0.16332477]
[1728543726607,0.22265216,61129.0,61128.0,0.16312477]
[1728543726828,0.22265216,61129.0,61128.0,0.16262477]
[1728543727045,0.22265216,61129.0,61128.0,0.16252477]
[1728543727266,0.22265216,61129.0,61128.0,0.16232477]
[1728543727569,0.22265216,61129.0,61128.0,0.16212477]
[1728543727723,0.22265216,61129.0,61128.0,0.16182477]
[1728543727946,0.22265216,61129.0,61128.0,0.16172477]
[1728543728161,0.22265216,61129.0,61126.0,0.02439639]
[1728543728381,0.22265216,61129.0,61128.0,0.163591]
[1728543729513,0.14911247,61129.0,61128.0,0.163591]
[1728543729985,0.02367022,61129.0,61128.0,0.163591]
[1728543730893,0.02367022,61129.0,61128.0,0.309291]
[1728543730894,0.07267832,61129.0,61128.0,0.309291]
[1728543731123,0.14702432,61138.0,61128.0,0.309291]
[1728543731124,0.0490081,61134.0,61133.0,0.163577]
[1728543731342,0.04900333,61134.0,61131.0,0.327165]
[1728543731801,0.04900333,61134.0,61133.0,0.490731]
[1728543732029,0.04900333,61134.0,61133.0,0.163577]
[1728543732250,0.17444558,61134.0,61133.0,0.163577]
[1728543732489,0.12544225,61134.0,61133.0,0.163577]
[1728543732766,0.17444558,61134.0,61133.0,0.163577]
[1728543733225,0.17444936,61134.0,61133.0,0.163577]
[1728543733453,0.12544225,61134.0,61133.0,0.163577]
[1728543733673,0.19895441,61134.0,61133.0,0.163577]
[1728543734563,0.19895441,61134.0,61133.0,0.164395]
[1728543743577,0.12544225,61134.0,61133.0,0.164395]
[1728543744065,0.12544225,61134.0,61133.0,0.000818]
[1728543744977,0.12544225,61134.0,61133.0,0.164395]
[1728543746634,0.30641963,61134.0,61133.0,0.164395]
[1728543747337,0.18097738,61134.0,61133.0,0.164395]
[1728543747577,0.4044788,61135.0,61133.0,0.164395]
[1728543747817,0.18098115,61134.0,61133.0,0.164395]
[1728543748557,0.28067255,61134.0,61133.0,0.164395]
[1728543749794,0.2807062,61134.0,61133.0,0.164395]
[1728543750259,0.07518439,61134.0,61133.0,0.164395]
[1728543750739,0.001636,61134.0,61133.0,0.164395]
[1728543751191,0.001636,61134.0,61133.0,0.000818]
[1728543751646,0.07518439,61134.0,61133.0,0.000818]
[1728543751886,0.07518439,61134.0,61133.0,0.164395]
[1728543753074,0.05067516,61134.0,61133.0,0.164395]
[1728543753310,0.07518439,61134.0,61133.0,0.164395]
[1728543753530,0.29798439,61134.0,61133.0,0.000818]
[1728543753987,0.224436,61134.0,61133.0,0.000818]
[1728543754428,0.29798439,61134.0,61133.0,0.000818]
[1728543754921,0.224436,61134.0,61133.0,0.000818]
[1728543755155,0.29798439,61134.0,61133.0,0.000818]
[1728543755620,0.224436,61134.0,61133.0,0.000818]
[1728543756074,0.29798439,61134.0,61133.0,0.000818]
[1728543756333,0.6963229,61134.0,61133.0,0.000818]
[1728543759165,0.69637942,61134.0,61133.0,0.000818]
[1728543763974,0.69647268,61134.0,61133.0,0.000818]
[1728543764655,0.85731032,61134.0,61133.0,0.000818]
[1728543766018,0.69373532,61134.0,61133.0,0.000818]
[1728543766254,0.98275257,61134.0,61133.0,0.000818]
[1728543771813,0.85550119,61134.0,61133.0,0.000818]
[1728543773432,0.8555424,61134.0,61133.0,0.000818]
[1728543774713,0.6919674,61134.0,61133.0,0.000818]
[1728543774929,0.8555424,61134.0,61133.0,0.000818]
[1728543776572,1.00284521,61134.0,61133.0,0.000818]
[1728543778311,1.00290301,61134.0,61133.0,0.000818]
[1728543779081,1.0029073,61134.0,61133.0,0.000818]
[1728543780341,1.16371391,61134.0,61133.0,0.000818]
[1728543781040,1.0029073,61134.0,61133.0,0.000818]
[1728543784872,0.85557665,61134.0,61133.0,0.000818]
[1728543785367,1.0029073,61134.0,61133.0,0.000818]
[1728543785639,0.85557665,61134.0,61133.0,0.000818]
[1728543786112,1.0029073,61134.0,61133.0,0.000818]
[1728543786347,1.16371391,61134.0,61133.0,0.000818]
[1728543788020,1.16370628,61134.0,61133.0,0.000818]
[1728543788955,1.00289967,61134.0,61133.0,0.000818]
[1728543790619,1.05409321,61134.0,61133.0,0.000818]
[1728543792691,1.05409658,61134.0,61133.0,0.000818]
[1728543793424,0.76507933,61134.0,61133.0,0.000818]
[1728543793653,0.90676621,61134.0,61133.0,0.000818]
[1728543793884,1.01638091,61134.0,61133.0,0.000818]
[1728543796715,0.8555743,61134.0,61133.0,0.000818]
[1728543797429,0.85558301,61134.0,61133.0,0.000818]
[1728543798557,1.00291883,61134.0,61133.0,0.000818]
[1728543801536,0.85558301,61134.0,61133.0,0.000818]
[1728543802003,0.90677132,61134.0,61133.0,0.000818]
[1728543802241,1.06768622,61134.0,61133.0,0.000818]
[1728543802462,1.01649791,61134.0,61133.0,0.000818]
[1728543802912,1.06768507,61134.0,61133.0,0.000818]
[1728543804813,0.90687846,61134.0,61133.0,0.000818]
[1728543810338,0.78143621,61134.0,61133.0,0.000818]
[1728543810554,0.90687846,61134.0,61133.0,0.000818]
[1728543811628,0.90685977,61134.0,61133.0,0.000818]
[1728543817700,0.61784252,61134.0,61133.0,0.000818]
[1728543817921,0.90685977,61134.0,61133.0,0.000818]
[1728543818150,0.74328477,61134.0,61133.0,0.000818]
[1728543819548,0.90409138,61134.0,61133.0,0.000818]
[1728543820912,0.74328477,61134.0,61133.0,0.000818]
[1728543825402,0.61784252,61134.0,61133.0,0.000818]
[1728543825691,0.74328477,61134.0,61133.0,0.000818]
[1728543826117,0.74328422,61134.0,61133.0,0.000818]
[1728543827458,0.61784197,61134.0,61133.0,0.000818]
[1728543827684,0.71405882,61134.0,61133.0,0.000818]
[1728543828350,0.84724283,61134.0,61133.0,0.000818]
[1728543828785,0.18301717,61134.0,61133.0,0.164395]
[1728543829031,0.30584099,61134.0,61133.0,0.164395]
[1728543829332,0.18301717,61134.0,61133.0,0.164395]
[1728543829773,0.07530327,61134.0,61133.0,0.164395]
[1728543829992,0.07530327,61134.0,61133.0,0.17969341]
[1728543830212,0.001636,61134.0,61133.0,0.17969341]
[1728543830432,0.07528615,61134.0,61133.0,0.164395]
[1728543830664,0.07528615,61134.0,61133.0,0.170395]
[1728543830910,0.07528615,61134.0,61133.0,0.175395]
[1728543831349,0.001636,61134.0,61133.0,0.175395]
[1728543831588,0.0998362,61134.0,61133.0,0.175395]
[1728543832161,0.2810531,61134.0,61133.0,0.175395]
[1728543834285,0.1828529,61134.0,61133.0,0.175395]
[1728543835356,0.28099458,61134.0,61133.0,0.175395]
[1728543836666,0.28098442,61134.0,61133.0,0.175395]
[1728543836918,0.07525829,61134.0,61133.0,0.175395]
[1728543837338,0.001636,61134.0,61133.0,0.175395]
[1728543838389,0.05071193,61134.0,61133.0,0.175395]
[1728543839682,0.05070457,61134.0,61133.0,0.175395]
[1728543839894,0.05070437,61134.0,61133.0,0.175395]
[1728543840337,0.07523946,61134.0,61133.0,0.175395]
[1728543840571,0.094736,61134.0,61133.0,0.175395]
[1728543840821,0.16833946,61134.0,61133.0,0.175395]
[1728543841034,0.3740104,61134.0,61133.0,0.175395]
[1728543841695,0.4502104,61134.0,61133.0,0.175395]
[1728543842378,0.35207224,61134.0,61133.0,0.175395]
[1728543842592,0.35207224,61134.0,61133.0,0.011818]
[1728543842817,0.4502104,61134.0,61133.0,0.011818]
[1728543843041,0.35207224,61134.0,61133.0,0.011818]
[1728543843978,0.35207224,61134.0,61133.0,0.000818]
[1728543844414,0.35207224,61134.0,61133.0,0.009818]
[1728543845070,0.47474494,61134.0,61133.0,0.009818]
[1728543845292,0.51564724,61134.0,61133.0,0.009818]
[1728543845509,0.67648488,61134.0,61133.0,0.009818]
[1728543846186,0.67648488,61134.0,61133.0,0.000818]
[1728543846403,0.67648488,61134.0,61133.0,0.001818]
[1728543846618,0.83729149,61134.0,61133.0,0.002818]
[1728543847724,0.67648488,61134.0,61133.0,0.002818]
[1728543850656,0.51290988,61134.0,61133.0,0.002818]
[1728543857187,0.67648488,61134.0,61133.0,0.002818]
[1728543857841,0.67650259,61134.0,61133.0,0.002818]
[1728543858703,0.67650259,61134.0,61133.0,0.001818]
[1728543859385,0.67650259,61134.0,61133.0,0.000818]
[1728543859822,0.51292759,61134.0,61133.0,0.000818]
[1728543860700,0.63836984,61134.0,61133.0,0.000818]
[1728543862630,0.63836999,61134.0,61133.0,0.000818]
[1728543866703,0.73812495,61134.0,61133.0,0.000818]
[1728543867502,0.73812829,61134.0,61133.0,0.000818]
[1728543867752,0.63837333,61134.0,61133.0,0.000818]
[1728543872391,0.51293108,61134.0,61133.0,0.000818]
[1728543872632,0.63837333,61134.0,61133.0,0.000818]
[1728543875346,0.63837333,61134.0,61133.0,0.000818]
[1728543879532,0.68956766,61134.0,61133.0,0.000818]
[1728543884430,0.83679402,61134.0,61133.0,0.000818]
[1728543887781,0.83710198,61134.0,61133.0,0.000818]
[1728543888358,0.68973755,61134.0,61133.0,0.000818]
[1728543893040,0.5642953,61134.0,61133.0,0.000818]
[1728543893245,0.68973755,61134.0,61133.0,0.000818]
[1728543897984,0.5642953,61134.0,61133.0,0.000818]
[1728543898191,0.68973755,61134.0,61133.0,0.000818]
[1728543898785,0.50841022,61134.0,61133.0,0.000818]
[1728543900069,0.45721589,61134.0,61133.0,0.000818]
[1728543900610,0.33177364,61134.0,61133.0,0.000818]
[1728543908599,0.5131957,61134.0,61133.0,0.000818]
[1728543913528,0.63594857,61134.0,61133.0,0.000818]
[1728543915039,0.47511093,61134.0,61133.0,0.164395]
[1728543915272,0.07527547,61134.0,61133.0,0.164395]
[1728543915498,0.07527547,61134.0,61133.0,0.17971364]
[1728543915705,0.001636,61134.0,61133.0,0.17971364]
[1728543916390,0.05070834,61134.0,61133.0,0.17971364]
[1728543916629,0.05070834,61134.0,61133.0,0.18571364]
[1728543916883,0.05070834,61134.0,61133.0,0.19271364]
[1728543918347,0.001636,61134.0,61133.0,0.19271364]
[1728543921568,0.05070834,61134.0,61133.0,0.177395]
[1728543921809,0.05070834,61134.0,61133.0,0.19269761]
[1728543922051,0.05070834,61134.0,61133.0,0.20800022]
[1728543922291,0.05069847,61134.0,61133.0,0.19269761]
[1728543923015,0.001636,61134.0,61133.0,0.19269761]
[1728543923526,0.05069847,61134.0,61133.0,0.19269761]
[1728543923767,0.05053818,61134.0,61133.0,0.19269761]
[1728543925024,0.05053818,61134.0,61133.0,0.177395]
[1728543925306,0.05053818,61134.0,61133.0,0.19269706]
[1728543925541,0.07506942,61134.0,61133.0,0.19269706]
[1728543927200,0.05057796,61134.0,61133.0,0.32063954]
[1728543927462,0.00147571,61134.0,61133.0,0.32063954]
[1728543927952,0.00147571,61134.0,61133.0,0.31463954]
[1728543928205,0.00147571,61134.0,61133.0,0.31663954]
[1728543928563,0.00147571,61134.0,61133.0,0.49147718]
[1728543928740,0.00147571,61134.0,61133.0,2.96547684]
[1728543929017,0.00147571,61134.0,61133.0,2.47484384]
[1728543929288,0.001636,61136.0,61135.0,0.42395673]
[1728543929552,0.001636,61136.0,61135.0,1.74495937]
[1728543929801,0.001636,61136.0,61135.0,1.34676637]
[1728543930904,0.001636,61136.0,61135.0,1.36076637]
[1728543931126,0.001636,61136.0,61135.0,1.37476637]
[1728543931745,0.001636,61136.0,61135.0,1.21852215]
[1728543932763,0.001636,61136.0,61135.0,1.22671775]
[1728543933316,0.001636,61136.0,61135.0,1.24195978]
[1728543933521,0.001636,61136.0,61135.0,1.15127978]
[1728543934744,0.001636,61136.0,61135.0,0.83834893]
[1728543934997,0.001636,61136.0,61135.0,0.78064893]
[1728543935218,0.001636,61136.0,61135.0,0.33560737]
[1728543935436,0.001636,61136.0,61135.0,0.32036626]
[1728543935645,0.001636,61136.0,61135.0,0.34479287]
[1728543935873,0.001636,61136.0,61135.0,0.33079287]
[1728543936295,0.001636,61136.0,61135.0,0.31679287]
[1728543936505,0.001636,61136.0,61135.0,0.35179287]
[1728543937324,0.001636,61136.0,61135.0,0.36579287]
[1728543937761,0.001636,61136.0,61135.0,0.35179287]
[1728543937973,0.001636,61136.0,61135.0,0.36279287]
[1728543939352,0.001636,61136.0,61135.0,0.37804126]
[1728543939780,0.001636,61136.0,61135.0,0.38004126]
[1728543940232,0.001636,61136.0,61135.0,0.37804126]
[1728543941583,0.001636,61136.0,61135.0,0.36279287]
[1728543941801,0.001636,61136.0,61135.0,0.37804137]
[1728543943137,0.001636,61136.0,61135.0,0.53887901]
[1728543943588,0.001636,61136.0,61135.0,0.37804137]
[1728543944748,0.001636,61136.0,61135.0,0.36279287]
[1728543944957,0.001636,61136.0,61135.0,0.37804485]
[1728543945199,0.001636,61136.0,61135.0,0.36279287]
[1728543945624,0.001636,61136.0,61135.0,0.37804488]
[1728543955668,0.001636,61136.0,61135.0,0.37806423]
[1728543956505,0.181636,61136.0,61135.0,0.37806423]
[1728543957196,0.181636,61136.0,61135.0,0.37807174]
[1728543957417,0.181636,61136.0,61135.0,0.35507174]
[1728543957658,0.181636,61136.0,61135.0,0.33912926]
[1728543957908,0.181636,61136.0,61135.0,0.33907174]
[1728543958185,0.181636,61136.0,61135.0,0.34607174]
[1728543958907,0.181636,61136.0,61135.0,0.33079287]
[1728543959141,0.181636,61136.0,61135.0,0.33907368]